bitfinex/quotes_ETHUSD_20260312
["timestamp","ask_amount","ask_price","bid_price","bid_amount"]
[1773357675594,1.84100001,2089.8,2089.4,0.72852742]
[1773357676653,1.84100001,2089.8,2089.5,1.19645848]
[1773357676970,1.84100001,2089.8,2089.5,1.9249859]
[1773357677171,1.844,2089.7,2089.6,0.72852742]
[1773357677368,1.844,2089.7,2089.1,0.72852742]
[1773357678783,1.19640122,2089.6,2089.1,1.92520173]
[1773357680152,1.19640122,2089.6,2089.1,1.92520687]
[1773357680350,1.19640122,2089.6,2089.1,1.92521016]
[1773357680754,1.848,2089.5,2089.1,1.92521016]
[1773357681357,1.848,2089.5,2089.3,0.001]
[1773357681776,0.002,2089.4,2089.3,0.001]
[1773357683261,1.853,2089.4,2089.3,0.001]
[1773357683470,1.853,2089.4,2089.3,0.72952742]
[1773357684175,1.19629428,2089.8,2089.4,0.72752742]
[1773357684381,1.852,2089.7,2089.4,0.72752742]
[1773357685093,1.85300001,2089.8,2089.6,0.72752742]
[1773357686096,1.85300001,2089.8,2089.4,0.72752742]
[1773357686313,1.85300001,2089.8,2089.1,0.72752742]
[1773357686468,3.57467613,2089.8,2088.7,0.72752742]
[1773357686668,2.54725847,2089.6,2088.7,0.72752742]
[1773357687391,1.19645848,2089.5,2088.7,0.72752742]
[1773357688866,1.19645848,2089.5,2088.8,0.5]
[1773357689300,4.78583393,2089.7,2088.7,1.92441909]
[1773357689470,4.78583393,2089.7,2088.8,0.72752742]
[1773357689798,1.856,2089.6,2088.8,0.72752742]
[1773357690104,1e-08,2089.8,2088.9,0.72752742]
[1773357690274,1.857,2089.7,2088.9,0.72752742]
[1773357691177,1e-08,2089.8,2088.8,0.72752742]
[1773357691398,1.849,2089.7,2089.1,0.72752742]
[1773357691572,1.849,2089.7,2089.3,0.72752742]
[1773357692409,1.85,2090.0,2089.3,0.72752742]
[1773357692575,1.85,2090.1,2089.3,0.72752742]
[1773357693470,3.0461271,2090.1,2089.4,1.19651574]
[1773357693698,3.0461271,2090.1,2089.5,0.72752742]
[1773357695580,0.002,2089.5,2089.2,0.72752742]
[1773357695996,1.854,2089.5,2089.2,0.72752742]
[1773357696197,0.002,2089.5,2089.2,0.72752742]
[1773357696503,0.002,2089.7,2089.2,0.72652742]
[1773357697708,0.002,2089.7,2089.1,0.72752742]
[1773357697882,1.855,2089.7,2089.2,0.72652742]
[1773357698484,1.853,2089.6,2089.2,0.72652742]
[1773357699639,1.853,2089.6,2089.4,0.72652742]
[1773357699928,4.78736386,2090.2,2089.4,0.72652742]
[1773357699929,0.003,2093.0,2089.9,0.72652742]
[1773357700125,0.003,2093.0,2091.7,0.72652742]
[1773357700283,0.003,2093.0,2091.3,0.49227785]
[1773357700284,0.27347257,2092.5,2091.3,0.49227785]
[1773357700479,2.82073104,2092.0,2090.8,0.2493]
[1773357700713,2.82073104,2092.0,2090.9,0.49227785]
[1773357700714,1.833,2092.0,2090.9,0.49227785]
[1773357700904,1.833,2092.0,2091.2,2.22477705]
[1773357701091,1.833,2092.0,2091.3,2.76692782]
[1773357701283,4.35546825,2093.0,2091.5,2.22477705]
[1773357701284,1.836,2092.3,2091.5,2.22477705]
[1773357701483,0.27347257,2092.9,2092.0,2.7170549]
[1773357701484,3.03153239,2092.9,2092.0,2.7170549]
[1773357701708,1.837,2092.9,2092.1,2.75934901]
[1773357701921,1.837,2092.9,2092.2,2.75934901]
[1773357701922,3.03151554,2092.9,2092.2,2.75934901]
[1773357702089,0.003,2093.0,2092.3,2.75159761]
[1773357702297,0.003,2093.0,2092.3,0.49227785]
[1773357702504,0.003,2093.0,2092.4,2.75147856]
[1773357702682,0.003,2093.0,2092.3,0.49227785]
[1773357702887,0.003,2093.0,2092.4,3.24374245]
[1773357703094,0.003,2093.0,2092.4,0.49227785]
[1773357703315,5.1272432,2094.0,2092.2,2.53861142]
[1773357703316,2.12247257,2094.3,2092.9,0.45966527]
[1773357703502,1.19400133,2093.8,2092.6,0.45966527]
[1773357703683,0.27647257,2093.7,2092.6,0.45966527]
[1773357703884,3.73261275,2093.8,2092.6,0.45966527]
[1773357704184,1.849,2093.7,2092.8,0.45966527]
[1773357704384,1.849,2093.7,2092.4,0.45966527]
[1773357704589,1.849,2093.7,2092.5,0.45966527]
[1773357704590,1.851,2093.6,2092.5,0.45966527]
[1773357705519,1.19417243,2093.5,2092.5,0.45966527]
[1773357705883,0.34952451,2093.4,2092.1,0.45966527]
[1773357706418,0.34952451,2093.4,2092.1,1.65463472]
[1773357706597,0.34952451,2093.4,2092.1,0.45966527]
[1773357707210,0.34952451,2093.4,2092.2,0.45966527]
[1773357707716,3.73289795,2093.3,2092.2,0.45966527]
[1773357708215,4.08242246,2093.3,2092.2,0.45966527]
[1773357708915,4.08242246,2093.3,2092.2,1.65456641]
[1773357709117,1.19405836,2093.7,2092.5,0.45966527]
[1773357709632,1.19405836,2093.7,2092.6,0.45966527]
[1773357709833,3.73266978,2093.7,2092.2,0.45966527]
[1773357710020,1.19405836,2093.7,2092.6,0.45966527]
[1773357710416,0.002,2093.2,2092.6,0.45966527]
[1773357710821,0.002,2093.2,2092.7,0.47892913]
[1773357711907,0.002,2093.2,2092.8,0.35561755]
[1773357712141,0.002,2093.2,2092.3,0.47892913]
[1773357712840,0.002,2093.2,2091.8,0.47892913]
[1773357712841,3.03734401,2092.8,2091.8,0.47892913]
[1773357713038,1.879,2092.7,2091.4,1.67426451]
[1773357713703,1.19468603,2092.6,2091.4,1.67426451]
[1773357713943,1.19468603,2092.6,2091.4,0.47892913]
[1773357714247,1.69341862,2092.6,2091.4,1.67429738]
[1773357714706,1.69341862,2092.6,2091.5,0.47892913]
[1773357715335,1.69341862,2092.6,2091.1,1.67442727]
[1773357715336,0.49873259,2092.5,2091.1,1.67442727]
[1773357715535,0.49873259,2092.4,2091.1,0.47892913]
[1773357715833,1.19485733,2092.3,2091.1,1.67447176]
[1773357716033,1.19485733,2092.3,2091.2,0.47892913]
[1773357716238,1.888,2092.2,2091.2,0.47892913]
[1773357717240,1.888,2092.2,2091.1,1.19553428]
[1773357717241,1.89,2092.4,2091.4,0.47892913]
[1773357718124,1.19485733,2092.3,2091.4,0.47892913]
[1773357719640,1.893,2092.2,2091.5,0.47892913]
[1773357720340,1.19497155,2092.1,2091.5,1.67422554]
[1773357720742,1.894,2092.4,2091.7,0.47892913]
[1773357721034,1.895,2092.4,2091.7,0.47892913]
[1773357721234,1.895,2092.4,2091.8,2.73535074]
[1773357721415,1.895,2092.4,2091.8,0.47892913]
[1773357721617,5.27687293,2092.9,2091.6,2.53861142]
[1773357721618,1.895,2092.9,2092.0,0.47892913]
[1773357722144,3.08954611,2092.9,2092.0,0.47892913]
[1773357722358,3.5882787,2092.9,2091.7,1.6741292]
[1773357722528,0.49873259,2092.8,2091.8,2.73696201]
[1773357722844,0.49873259,2092.8,2091.9,2.73696201]
[1773357723145,0.49873259,2092.8,2091.5,6.98871999]
[1773357723146,2.53861142,2092.7,2091.5,2.2074792]
[1773357723344,0.49873259,2092.6,2091.6,3.21853917]
[1773357723641,1.897,2092.6,2091.8,0.47892913]
[1773357723839,1.897,2092.9,2092.0,0.47892913]
[1773357724043,1.897,2092.8,2092.1,3.21853917]
[1773357724350,1.897,2092.8,2092.2,2.74004908]
[1773357724559,1.897,2092.8,2091.9,1.67501493]
[1773357724717,3.09158154,2092.8,2092.0,2.74017506]
[1773357724920,3.09158154,2092.8,2092.1,2.74017506]
[1773357725117,1.897,2092.8,2092.2,2.74017506]
[1773357725333,1.898,2092.7,2091.9,3.88249413]
[1773357725540,1.898,2092.7,2092.0,2.74272976]
[1773357725750,1.898,2092.7,2092.1,2.74272976]
[1773357725945,2.53861142,2092.5,2091.9,0.001]
[1773357726139,0.49873259,2092.6,2091.9,0.001]
[1773357726451,1.69346406,2092.6,2091.9,0.001]
[1773357726648,0.49873259,2092.5,2091.9,0.001]
[1773357727260,1.898,2092.4,2091.9,0.001]
[1773357727556,1.898,2092.7,2091.9,2.2084792]
[1773357727729,1.898,2092.7,2091.9,0.001]
[1773357728126,1.898,2092.7,2092.0,2.2074792]
[1773357728362,1.898,2092.7,2092.2,1.19491444]
[1773357728936,1.898,2092.7,2092.1,1.19494209]
[1773357729131,1.898,2092.7,2092.3,2.2074792]
[1773357730155,1.898,2092.7,2092.1,3.40244957]
[1773357731059,1.898,2092.7,2092.2,2.25527577]
[1773357732345,1.898,2092.7,2092.2,2.2074792]
[1773357732550,1.898,2092.7,2092.2,3.4023451]
[1773357732929,1.897,2092.7,2092.2,3.4023451]
[1773357733134,1.897,2092.7,2092.2,2.2074792]
[1773357733338,0.49873259,2092.6,2091.9,2.2084792]
[1773357733539,1.897,2092.7,2091.9,2.2084792]
[1773357733750,1.897,2092.7,2092.0,2.2074792]
[1773357733938,1.897,2092.7,2092.1,0.0477974]
[1773357734136,1.897,2092.7,2092.1,2.2552766]
[1773357734623,3.59037991,2092.7,2092.1,2.2074792]
[1773357734828,3.59037991,2092.7,2091.9,2.2084792]
[1773357734829,0.49873259,2092.6,2091.9,2.2084792]
[1773357735028,0.49873259,2092.6,2091.5,4.5324443]
[1773357735533,0.49873259,2092.5,2091.5,5.01137343]
[1773357735842,0.49873259,2092.5,2091.6,0.47892913]
[1773357736052,1.19464732,2092.7,2091.6,0.47892913]
[1773357736248,5.27724838,2092.8,2091.7,0.47892913]
[1773357736249,1.895,2092.6,2091.7,0.47892913]
[1773357736428,1.895,2092.6,2091.5,4.5324443]
[1773357736763,1.895,2092.6,2091.4,5.26035349]
[1773357736764,0.49873259,2092.3,2091.4,1.67425405]
[1773357737646,0.49873259,2092.3,2091.4,1.67430029]
[1773357738034,0.49873259,2092.3,2091.5,2.77374871]
[1773357738230,0.49873259,2092.3,2091.6,2.77374871]
[1773357738465,0.49873259,2092.3,2091.8,0.001]
[1773357738645,1.19491444,2092.2,2091.8,0.001]
[1773357739769,1.69363281,2092.3,2091.8,0.001]
[1773357740147,4.77912745,2092.5,2091.8,0.001]
[1773357740346,1.69547572,2092.6,2091.8,0.001]
[1773357740347,1.896,2092.6,2092.0,0.47892913]
[1773357740547,1.896,2092.6,2092.1,2.7757615]
[1773357740779,1.896,2092.6,2092.2,3.97067594]
[1773357740947,1.896,2092.6,2092.3,2.7757615]
[1773357741148,1.896,2092.6,2092.1,1.19493094]
[1773357741149,1.896,2092.6,2092.4,2.77590735]
[1773357741354,1.896,2092.6,2092.1,1.19493094]
[1773357741578,1.896,2092.6,2092.2,2.77615143]
[1773357741788,1.19437239,2093.2,2092.3,3.23084875]
[1773357741989,1.894,2093.1,2092.4,2.77615143]
[1773357742286,1.894,2093.1,2092.5,2.77615143]
[1773357742573,1.894,2093.1,2092.6,2.77615143]
[1773357742778,1.894,2093.1,2092.7,3.97076718]
[1773357743075,1.894,2093.1,2092.7,1.19461575]
[1773357743282,1.894,2093.1,2092.8,2.77507371]
[1773357743505,1.893,2093.7,2093.0,0.45469732]
[1773357743652,1.893,2093.8,2093.1,3.22977103]
[1773357743978,1.893,2093.8,2093.2,2.77507371]
[1773357744147,1.893,2093.8,2093.1,0.45469732]
[1773357744148,1.893,2093.8,2093.3,2.77507371]
[1773357744343,1.893,2093.8,2093.1,0.45469732]
[1773357744572,1.893,2093.8,2093.2,2.76754619]
[1773357744782,1.893,2093.8,2093.3,2.76754619]
[1773357744983,1.893,2093.8,2093.2,1.19434358]
[1773357745189,1.893,2093.8,2093.3,2.76822483]
[1773357745365,4.77420862,2094.6,2093.4,3.21979232]
[1773357745366,1.893,2093.9,2093.4,3.21979232]
[1773357745571,1.19365928,2094.4,2093.5,3.21979232]
[1773357745572,1.892,2094.1,2093.5,3.21979232]
[1773357745882,0.46781082,2094.7,2093.6,2.765095]
[1773357746080,2.53861142,2094.2,2093.2,0.45469732]
[1773357746291,2.35981082,2094.1,2093.3,2.76596183]
[1773357746490,2.35981082,2094.1,2093.1,1.64905858]
[1773357746663,1.892,2094.1,2093.2,3.21881418]
[1773357746857,1.892,2094.1,2093.4,0.45469732]
[1773357747062,3.08583499,2094.1,2093.5,3.95828929]
[1773357747267,1.892,2094.5,2093.6,3.21536892]
[1773357747602,1.892,2094.5,2093.8,0.45469732]
[1773357748772,1.892,2094.5,2093.5,0.45469732]
[1773357748984,1.19365928,2094.4,2093.6,2.75967074]
[1773357749183,1.19365928,2094.4,2093.5,0.45469732]
[1773357749400,1.19365928,2094.4,2093.0,0.45469732]
[1773357749615,1.19365928,2094.4,2092.9,3.33716558]
[1773357749616,2.53861142,2094.2,2093.1,3.2134504]
[1773357749898,0.46781082,2094.3,2093.2,0.45469732]
[1773357749899,1.89,2094.1,2093.2,0.45469732]
[1773357750871,1.19388729,2094.0,2092.9,0.45469732]
[1773357751414,1.888,2093.9,2093.0,0.45469732]
[1773357752806,2.35581082,2093.9,2092.7,0.45469732]
[1773357753016,1.19400133,2093.8,2092.7,0.45469732]
[1773357753321,1.887,2093.7,2092.8,0.45469732]
[1773357753812,1.886,2093.7,2092.9,0.45469732]
[1773357754373,1.886,2093.7,2093.2,0.45469732]
[1773357755021,0.002,2093.8,2093.2,0.45469732]
[1773357755222,1.885,2093.7,2093.2,0.45469732]
[1773357755521,0.002,2093.8,2092.9,0.45469732]
[1773357755821,3.07781237,2094.2,2093.2,0.45469732]
[1773357756395,0.46781082,2094.1,2092.9,0.45469732]
[1773357756935,3.06641136,2093.9,2092.9,0.45469732]
[1773357757104,1.19405836,2093.7,2092.6,0.45469732]
[1773357757311,1.19405836,2093.7,2092.7,0.45469732]
[1773357758939,3.73266978,2093.7,2092.7,0.45469732]
[1773357759154,1.19405836,2093.7,2092.7,0.45469732]
[1773357759427,1.19405836,2093.7,2092.3,4.7793708]
[1773357759428,3.00642224,2093.6,2092.3,0.45469732]
[1773357759599,0.46781082,2093.5,2092.3,0.45469732]
[1773357759800,2.34881082,2093.4,2092.3,0.45469732]
[1773357759997,3.00642224,2093.3,2092.3,0.45469732]
[1773357760731,0.46781082,2093.2,2092.0,0.45569732]
[1773357761108,1.19451478,2092.9,2092.0,0.45569732]
[1773357761511,1.19451478,2092.9,2092.0,1.65072303]
[1773357762341,1.19451478,2092.9,2092.0,0.45569732]
[1773357763150,1.19462894,2092.7,2092.0,0.001]
[1773357763360,1.877,2092.6,2092.0,0.001]
[1773357763520,1.877,2092.5,2092.0,0.001]
[1773357764910,1.877,2092.5,2091.8,0.001]
[1773357764911,0.49307145,2092.4,2091.8,0.001]
[1773357765636,1.19485733,2092.3,2091.8,0.001]
[1773357766054,1.68792878,2092.3,2091.8,0.001]
[1773357766340,0.49307145,2092.2,2091.8,0.001]
[1773357766924,1.19485733,2092.3,2091.8,0.001]
[1773357767124,4.77942933,2092.4,2091.8,0.47605563]
[1773357767125,1.875,2092.2,2091.8,0.47605563]
[1773357767738,3.06993172,2092.2,2092.0,0.001]
[1773357768117,1.19424224,2093.4,2092.2,0.47505563]
[1773357768431,1.1962137,2093.5,2092.2,0.47505563]
[1773357769750,1.1962137,2093.5,2092.4,0.47505563]
[1773357770380,1.68928515,2093.5,2092.4,0.47505563]
[1773357770590,1.68928515,2093.5,2092.2,1.19488099]
[1773357770591,0.45139223,2093.4,2092.2,1.19488099]
[1773357770755,2.98995183,2093.3,2092.2,1.19488099]
[1773357770957,0.45139223,2093.2,2092.1,1.66401379]
[1773357771661,0.45139223,2093.2,2092.1,0.46904234]
[1773357771877,3.51879287,2093.1,2092.1,0.46904234]
[1773357772251,0.45139223,2093.0,2092.0,1.19602338]
[1773357772453,0.45139223,2093.0,2092.0,1.19601933]
[1773357772958,0.45139223,2093.0,2092.0,0.001]
[1773357773889,1.19451478,2092.9,2092.0,0.47004234]
[1773357775399,1.19451478,2092.9,2091.8,0.001]
[1773357775400,0.45139223,2092.8,2091.8,0.001]
[1773357775698,0.45139223,2092.8,2091.1,0.46904234]
[1773357775699,0.45139223,2092.2,2091.1,0.46904234]
[1773357775903,0.45139223,2092.2,2090.9,4.78246443]
[1773357775904,0.45139223,2092.0,2090.9,4.78246443]
[1773357776098,1.872,2091.9,2090.9,4.78246443]
[1773357776482,2.32339223,2091.9,2090.9,4.78246443]
[1773357776998,0.45139223,2091.8,2090.8,4.17098046]
[1773357777207,0.45139223,2091.8,2090.8,4.17098678]
[1773357777371,0.45139223,2091.8,2090.8,4.17098814]
[1773357777576,0.45139223,2091.8,2090.6,4.78324909]
[1773357777577,0.45139223,2091.8,2090.7,1.19572094]
[1773357777795,0.45139223,2091.8,2090.6,1.19578203]
[1773357778005,1.6465923,2091.7,2090.7,2.5385596]
[1773357778173,1.6465923,2091.7,2090.6,1.66482437]
[1773357778593,1.19520007,2091.7,2090.7,0.46904234]
[1773357778799,1.871,2091.6,2090.9,0.46904234]
[1773357778999,5.23129564,2092.1,2090.9,0.46904234]
[1773357779175,1.871,2092.0,2090.9,0.46904234]
[1773357779778,2.32239223,2092.0,2090.9,0.46904234]
[1773357779972,2.32239223,2092.0,2091.0,1.19560019]
[1773357779973,1.1950858,2091.9,2091.0,1.19560019]
[1773357780196,2.32239223,2091.8,2090.7,1.19573938]
[1773357780913,0.45139223,2091.7,2090.7,1.19573938]
[1773357781411,0.45139223,2091.7,2090.4,4.78377321]
[1773357781412,0.45139223,2091.6,2090.4,0.46904234]
[1773357782295,1.64670659,2091.5,2090.9,0.001]
[1773357784008,0.45139223,2091.4,2090.9,0.001]
[1773357784195,1.19542868,2091.3,2090.9,0.001]
[1773357784840,1.868,2091.2,2090.9,0.001]
[1773357785204,1.867,2091.2,2090.9,0.001]
[1773357785405,1.19520007,2091.7,2090.9,0.001]
[1773357785604,1.667,2091.2,2090.9,0.001]
[1773357786286,1.667,2091.2,2090.9,1.19665737]
[1773357788710,1.667,2091.2,2090.9,0.001]
[1773357788900,2.86249384,2091.2,2090.9,0.001]
[1773357789091,2.86249384,2091.2,2090.6,0.001]
[1773357789291,3.31388607,2091.2,2090.6,0.001]
[1773357789492,7.32050298,2091.6,2090.6,4.20441176]
[1773357789493,1.64671117,2091.5,2090.6,4.20441176]
[1773357789694,1.864,2091.1,2090.6,4.20441176]
[1773357790310,1.864,2091.1,2090.6,1.19680982]
[1773357791797,1.861,2091.1,2090.6,3.73536942]
[1773357794229,1.19544899,2091.3,2090.6,3.73536942]
[1773357794528,1.859,2091.2,2090.6,3.73536942]
[1773357795937,3.05449496,2091.2,2090.6,3.73536942]
[1773357796234,3.05448934,2091.2,2090.6,1.19680982]
[1773357796614,1.856,2091.1,2090.8,0.001]
[1773357796920,3.05157117,2091.1,2090.8,0.001]
[1773357797309,0.45139223,2091.0,2090.6,0.001]
[1773357797619,0.45139223,2091.0,2090.4,0.001]
[1773357798204,0.45139223,2091.0,2089.9,1.19620817]
[1773357798429,1.854,2090.9,2090.0,2.5385596]
[1773357798629,0.45139223,2090.8,2089.9,1.19620817]
[1773357798830,1.19577175,2090.7,2089.8,4.78514611]
[1773357799032,1.64716398,2090.7,2089.8,4.78514611]
[1773357799236,0.45139223,2090.6,2089.8,4.78514611]
[1773357800641,1.852,2090.5,2089.8,4.78514611]
[1773357800819,3.04794092,2090.5,2089.8,4.78514611]
[1773357801018,1.852,2090.5,2089.7,4.21416136]
[1773357801345,3.04789544,2090.5,2089.7,4.21416136]
[1773357802835,3.51851958,2090.5,2089.7,4.21416136]
[1773357803350,1.66651958,2090.5,2089.7,1.67560176]
[1773357803563,1.849,2090.4,2089.7,1.67560176]
[1773357803760,0.47062414,2090.3,2089.7,0.001]
[1773357804223,0.47062414,2090.3,2089.1,4.78760858]
[1773357804430,0.47062414,2090.3,2089.1,0.001]
[1773357804639,4.3875596,2090.4,2089.1,0.001]
[1773357804640,0.47062414,2089.8,2089.1,0.001]
[1773357804853,1.66708262,2089.5,2089.1,0.001]
[1773357805213,0.47062414,2089.4,2089.1,0.001]
[1773357805613,0.47062414,2089.4,2088.9,0.001]
[1773357806220,1.847,2089.3,2088.5,0.4783014]
[1773357806816,1.847,2089.3,2088.4,3.73564828]
[1773357807040,0.47062414,2089.2,2088.4,1.19708868]
[1773357807245,0.47062414,2089.2,2088.3,0.001]
[1773357807637,0.47062414,2089.1,2088.3,0.001]
[1773357808743,0.47062414,2088.9,2088.3,0.001]
[1773357809056,0.47062414,2088.7,2088.3,0.001]
[1773357809228,0.47062414,2088.7,2088.0,0.001]
[1773357810718,0.47062414,2088.5,2088.0,0.001]
[1773357810922,3.51171282,2088.4,2088.0,0.001]
[1773357811152,1.843,2088.3,2088.0,0.001]
[1773357811352,1.843,2088.2,2088.0,0.001]
[1773357812460,2.31362414,2088.2,2087.2,1.19873252]
[1773357812623,0.47062414,2088.5,2087.3,3.016861]
[1773357812827,1.843,2088.4,2087.4,0.4783014]
[1773357813242,1.843,2088.4,2087.3,1.19771954]
[1773357813243,0.47062414,2088.3,2087.3,1.19771954]
[1773357813427,0.47062414,2088.3,2087.2,1.1987741]
[1773357814269,0.47062414,2088.2,2087.2,1.19875695]
[1773357814435,0.47062414,2088.2,2087.2,4.21561795]
[1773357814761,3.04014006,2088.4,2087.2,4.21561795]
[1773357814762,3.04014006,2088.4,2087.3,0.4783014]
[1773357815060,1.842,2088.3,2087.3,0.4783014]
[1773357815230,3.03914872,2088.3,2087.4,1.19766216]
[1773357815662,3.50977286,2088.3,2087.4,1.19766216]
[1773357815849,3.03914872,2088.3,2087.4,1.19766216]
[1773357816032,3.50977286,2088.3,2087.4,1.19766216]
[1773357816860,1.841,2088.2,2087.4,1.67596356]
[1773357817030,1.841,2088.2,2087.5,0.4783014]
[1773357817427,1.841,2088.2,2087.6,1.19754742]
[1773357817626,1.841,2088.1,2087.6,1.19754742]
[1773357818629,1.841,2088.0,2087.6,1.19754742]
[1773357819153,1.841,2088.0,2087.3,1.19771954]
[1773357819464,4.78835472,2088.6,2087.3,1.19771954]
[1773357819465,1.84,2088.6,2087.6,0.4783014]
[1773357820228,0.47062414,2088.5,2087.6,0.4783014]
[1773357821160,1.84,2088.6,2087.7,0.4783014]
[1773357821362,1.84,2088.6,2087.9,0.4783014]
[1773357821568,0.47062414,2087.9,2086.7,0.001]
[1773357821768,0.47062414,2087.2,2086.4,0.001]
[1773357821927,2.62025186,2087.9,2086.4,1.19922512]
[1773357821928,0.47062414,2086.9,2086.4,1.19922512]
[1773357822134,2.30962414,2086.9,2086.4,0.001]
[1773357822574,0.47062414,2086.8,2086.4,0.001]
[1773357823230,0.49197397,2086.7,2086.2,0.001]
[1773357823433,1.19812134,2086.6,2086.2,0.001]
[1773357824035,0.49197397,2086.5,2086.2,0.001]
[1773357825271,0.49197397,2086.5,2086.0,0.001]
[1773357825455,1.69021016,2086.4,2086.0,0.001]
[1773357825654,1.19823619,2086.4,2086.0,0.001]
[1773357825849,1.69021016,2086.4,2086.0,0.001]
[1773357826175,0.49197397,2086.3,2086.1,0.001]
[1773357826376,1.838,2086.2,2085.7,0.001]
[1773357826878,1.19816563,2086.6,2085.7,0.001]
[1773357827045,1.6901396,2086.6,2085.7,0.001]
[1773357827446,1.69016663,2086.5,2085.7,0.001]
[1773357828277,1.69020144,2086.5,2085.7,0.001]
[1773357828480,1.19822747,2086.5,2085.7,0.001]
[1773357828777,0.49197397,2086.4,2085.7,0.001]
[1773357829343,1.69026759,2086.3,2085.7,0.001]
[1773357829548,1.19829362,2086.3,2085.7,0.001]
[1773357829775,1.19826216,2086.4,2085.7,0.001]
[1773357830177,0.49197397,2086.3,2085.7,0.001]
[1773357831249,0.49197397,2086.3,2085.4,1.19980617]
[1773357831568,1.19835106,2086.2,2085.4,0.001]
[1773357831943,0.48281839,2086.1,2085.4,0.001]
[1773357833552,1.19846596,2086.0,2085.4,0.001]
[1773357833754,0.48281839,2085.9,2085.4,0.001]
[1773357834155,1.19846596,2086.0,2085.4,0.001]
[1773357835381,1.68117334,2086.2,2085.4,0.001]
[1773357835588,1.68117334,2086.2,2084.9,7.35013492]
[1773357835589,0.48281839,2085.5,2084.1,2.20962639]
[1773357835794,2.55375956,2085.6,2082.7,2.61192599]
[1773357835795,0.48281839,2084.3,2082.7,2.61192599]
[1773357836089,0.48281839,2083.7,2082.7,2.47936872]
[1773357836274,5.10751912,2084.4,2082.7,2.47936872]
[1773357836275,0.48281839,2084.3,2082.7,2.47936872]
[1773357836451,0.48281839,2084.3,2082.8,1.33286454]
[1773357837253,0.48281839,2084.3,2082.8,3.8866241]
[1773357837455,0.48281839,2084.3,2082.8,1.20030727]
[1773357837684,0.48281839,2083.9,2082.8,1.20030727]
[1773357837873,0.48281839,2083.9,2082.7,2.47936872]
[1773357838074,0.48281839,2083.9,2082.9,2.55375956]
[1773357838394,0.36703999,2084.3,2083.2,2.55375956]
[1773357838690,0.48281839,2084.6,2083.3,0.24833567]
[1773357839667,0.48281839,2084.4,2083.1,4.80040018]
[1773357840092,0.48281839,2084.4,2083.2,2.55375956]
[1773357840294,0.48281839,2084.4,2083.1,5.04873585]
[1773357841606,0.48281839,2084.4,2083.3,1.2000192]
[1773357842688,1.68224194,2084.4,2083.3,1.2000192]
[1773357842904,0.48281839,2084.0,2083.0,0.001]
[1773357843214,0.48281839,2084.0,2083.0,1.20117159]
[1773357843707,1.68243784,2084.0,2083.0,0.001]
[1773357844075,0.48281839,2084.0,2083.0,0.001]
[1773357844270,7.35131392,2084.4,2083.0,0.001]
[1773357844271,0.48281839,2084.3,2083.0,0.32665526]
[1773357844884,3.75318327,2084.4,2083.0,0.001]
[1773357844885,0.48281839,2083.8,2083.0,0.001]
[1773357846398,1.68257488,2083.8,2083.0,0.001]
[1773357846905,0.48281839,2083.8,2083.0,0.001]
[1773357847072,0.48281839,2084.2,2083.0,0.001]
[1773357847275,7.35091586,2084.6,2083.0,0.001]
[1773357847276,0.48281839,2083.9,2083.0,0.001]
[1773357847797,0.48281839,2084.3,2083.0,0.001]
[1773357847996,0.48281839,2084.3,2083.0,1.52684729]
[1773357849078,3.03657795,2083.7,2083.0,0.001]
[1773357849508,0.48281839,2083.7,2083.0,0.001]
[1773357849706,0.48281839,2083.7,2082.6,4.80163662]
[1773357849707,0.48281839,2083.0,2082.5,0.001]
[1773357850008,0.48281839,2082.3,2080.9,4.8055865]
[1773357850313,1.20053784,2082.4,2080.9,1.20140323]
[1773357850314,0.48281839,2081.7,2080.9,1.20140323]
[1773357851104,3.03657795,2081.7,2080.8,1.36646053]
[1773357851305,0.48281839,2081.7,2080.8,1.36646053]
[1773357851483,0.48281839,2081.7,2080.8,0.1650142]
[1773357851684,0.48281839,2082.0,2080.8,1.36646291]
[1773357851902,0.48281839,2081.8,2080.8,1.36646291]
[1773357852291,0.48281839,2081.8,2080.8,0.1650142]
[1773357852912,0.48281839,2081.5,2080.8,0.1650142]
[1773357853273,1.20082616,2081.9,2080.8,1.36645045]
[1773357853590,1.20082616,2081.9,2080.8,1.36644736]
[1773357853591,0.48281839,2081.6,2080.8,1.36644736]
[1773357854275,0.48281839,2081.6,2080.8,1.3664746]
[1773357854480,0.48281839,2081.6,2080.8,1.36646717]
[1773357855504,0.48281839,2082.0,2080.8,1.36646717]
[1773357855691,3.03657795,2082.0,2080.8,1.36646717]
[1773357856006,2.55375956,2081.9,2080.8,1.36646717]
[1773357856306,0.48281839,2081.9,2080.8,1.36646717]
[1773357857472,1.68364791,2081.9,2080.8,1.36646717]
[1773357857674,0.48281839,2081.9,2080.8,1.36646717]
[1773357857893,1.68364582,2081.9,2080.8,1.36646717]
[1773357858108,0.48281839,2081.8,2080.8,1.36646717]
[1773357859191,4.80245964,2082.3,2080.8,1.36646717]
[1773357859192,1.68350803,2082.2,2080.8,1.36646717]
[1773357859408,0.48281839,2082.1,2080.8,1.36646717]
[1773357859608,0.48281839,2082.1,2080.9,0.32665526]
[1773357859811,0.48281839,2082.1,2080.8,3.92022673]
[1773357859812,0.48281839,2082.1,2080.8,1.36646717]
[1773357860182,0.48281839,2082.1,2080.8,1.69312243]
[1773357860403,0.48281839,2082.1,2080.8,4.24688199]
[1773357860875,0.48281839,2082.1,2080.8,1.69312243]
[1773357861676,0.48281839,2082.1,2080.8,1.36646717]
[1773357862022,0.48281839,2082.1,2080.8,6.01988199]
[1773357862323,0.45081408,2082.0,2080.8,4.24688199]
[1773357862680,0.45081408,2082.0,2080.8,1.69312243]
[1773357862983,1.65138963,2082.4,2080.9,0.32665526]
[1773357863298,0.45081408,2082.9,2081.6,0.32665526]
[1773357863675,0.45081408,2082.9,2081.7,1.776]
[1773357864081,0.45081408,2082.9,2081.7,2.10265526]
[1773357865906,0.45081408,2083.2,2082.1,0.0132834]
[1773357866484,0.45081408,2083.1,2082.2,1.20065315]
[1773357867310,0.45081408,2083.1,2082.2,1.21393655]
[1773357870730,0.45081408,2083.5,2082.3,3.01218856]
[1773357871186,0.45081408,2083.9,2082.4,0.30620034]
[1773357871390,0.45081408,2083.9,2082.4,0.0132834]